Workbook

Sheet Planning en Output
A1: 5 | C1: Invullen
A2: Week | B2: Gepland | C2: Output | D2: Achterstand | E2: Aantal blokken niet geclipt
A3: 1 | B3: 29500 | C3: =SUMIF($C$58:$C$321,A3,$F$58:$F$321) -> 27300 | D3: =B3-C3 -> 2200 | E3: =IFERROR(COUNTIF(INDIRECT(A3&"!$G$5:$G$8"),0)+COUNTIF(INDIRECT(A3&"!$i$5:$i$8"),0)+COUNTIF(INDIRECT(A3&"!$k$5:$k$8"),0)+COUNTIF(INDIRECT(A3&"!$m$5:$m$8"),0)+COUNTIF(INDIRECT(A3&"!$o$5:$o$8"),0),"-") -> 6
A4: 2 | B4: 31500 | C4: =SUMIF($C$58:$C$321,A4,$F$58:$F$321) -> 29750 | D4: 1750 | E4: =IFERROR(COUNTIF(INDIRECT(A4&"!$G$5:$G$8"),0)+COUNTIF(INDIRECT(A4&"!$i$5:$i$8"),0)+COUNTIF(INDIRECT(A4&"!$k$5:$k$8"),0)+COUNTIF(INDIRECT(A4&"!$m$5:$m$8"),0)+COUNTIF(INDIRECT(A4&"!$o$5:$o$8"),0),"-") -> 4
A5: =A4+1 -> 3 | E5: -
A6: 4 | E6: -
A7: 5 | E7: -
A8: 6 | E8: -
A9: 7 | E9: -
A10: 8 | E10: -
A11: 9 | E11: -
A12: 10 | E12: -
A13: 11 | E13: -
A14: 12 | E14: -
A15: 13 | E15: -
A16: 14 | E16: -
A17: 15 | E17: -
A18: 16 | E18: -
A19: 17 | E19: -
A20: 18 | E20: -
A21: 19 | E21: -
A22: 20 | E22: -
A23: 21 | E23: -
A24: 22 | E24: -
A25: 23 | E25: -
A26: 24 | E26: -
A27: 25 | E27: -
A28: 26 | E28: -
A29: 27 | E29: -
A30: 28 | E30: -
A31: 29 | E31: -
A32: 30 | E32: -
A33: 31 | E33: -
A34: 32 | E34: -
A35: 33 | E35: -
A36: 34 | E36: -
A37: 35 | E37: -
A38: 36 | E38: -
A39: 37 | E39: -
A40: 38 | E40: -
A41: 39 | E41: -
A42: 40 | D42: =B42-C42 ->  | E42: -
A43: =A42+1 -> 41 | D43: =B43-C43 ->  | E43: -
A44: =A43+1 -> 42 | E44: -
A45: 43 | E45: -
A46: 44 | E46: -
A47: 45 | E47: -
A48: 46 | E48: -
A49: 47 | E49: -
A50: 48 | E50: -
A51: 49 | E51: -
A52: 50 | E52: -
A53: 51 | E53: -
A54: 52 | E54: -
A57: Datum | B57: Dag | C57: Week | D57: Gepland per week | E57: Gepland | F57: Output | G57: Achterstand
A58: 2019-12-30 | B58: Maandag | C58: 1 | D58: =VLOOKUP(C58,$A$3:$B$54,2,FALSE) -> 29500 | E58: =D58/$A$1 -> 5900 | F58: =SUM(INDIRECT(C58&"!$G$5:$G$8")) -> 4900 | G58: =E58-F58 -> 1000
A59: =A58+1 -> 2019-12-31 | B59: Dinsdag | C59: 1 | D59: 29500 | E59: 5900 | F59: =SUM(INDIRECT(C59&"!$i$5:$i$8")) -> 7175 | G59: -1275
A60: =A59+1 -> 2020-01-01 | B60: Woensdag | C60: =WEEKNUM(A60,2) -> 1 | D60: 29500 | E60: 5900 | F60: =SUM(INDIRECT(C60&"!$k$5:$k$8")) -> 6125 | G60: -225
A61: 2020-01-02 | B61: Donderdag | C61: 1 | D61: 29500 | E61: 5900 | F61: =SUM(INDIRECT(C61&"!$m$5:$m$8")) -> 6475 | G61: -575
A62: 2020-01-03 | B62: Vrijdag | C62: 1 | D62: 29500 | E62: 5900 | F62: =SUM(INDIRECT(C62&"!$o$5:$o$8")) -> 2625 | G62: 3275
A63: =A62+3 -> 2020-01-06 | B63: =B58 -> Maandag | C63: 2 | D63: 31500 | E63: 6300 | F63: =SUM(INDIRECT(C63&"!$G$5:$G$8")) -> 6125 | G63: 175
A64: =A63+1 -> 2020-01-07 | B64: =B59 -> Dinsdag | C64: 2 | D64: 31500 | E64: 6300 | F64: =SUM(INDIRECT(C64&"!$i$5:$i$8")) -> 7000 | G64: =E64-F64 -> -700
A65: =A64+1 -> 2020-01-08 | B65: =B60 -> Woensdag | C65: 2 | D65: 31500 | E65: 6300 | F65: =SUM(INDIRECT(C65&"!$k$5:$k$8")) -> 5600 | G65: =IF(E65=0,0,IF(F65=0,G64,G64+E65-F65)) -> 0
A66: 2020-01-09 | B66: =B61 -> Donderdag | C66: 2 | D66: 31500 | E66: 6300 | F66: =SUM(INDIRECT(C66&"!$m$5:$m$8")) -> 5950 | G66: =IF(E66=0,0,IF(F66=0,G65,G65+E66-F66)) -> 350
A67: 2020-01-10 | B67: =B62 -> Vrijdag | C67: 2 | D67: 31500 | E67: 6300 | F67: =SUM(INDIRECT(C67&"!$o$5:$o$8")) -> 5075 | G67: 1575
A68: =A67+3 -> 2020-01-13 | B68: =B63 -> Maandag | C68: 3 | D68: 0 | E68: 0 | F68: =SUM(INDIRECT(C68&"!$G$5:$G$8")) ->  | G68: 0
A69: =A68+1 -> 2020-01-14 | B69: Dinsdag | C69: 3 | D69: 0 | E69: 0 | F69: =SUM(INDIRECT(C69&"!$i$5:$i$8")) ->  | G69: 0
A70: 2020-01-15 | B70: Woensdag | C70: 3 | D70: 0 | E70: 0 | F70: =SUM(INDIRECT(C70&"!$k$5:$k$8")) ->  | G70: 0
A71: 2020-01-16 | B71: Donderdag | C71: 3 | D71: 0 | E71: 0 | F71: =SUM(INDIRECT(C71&"!$m$5:$m$8")) ->  | G71: 0
A72: 2020-01-17 | B72: Vrijdag | C72: 3 | D72: 0 | E72: 0 | F72: =SUM(INDIRECT(C72&"!$o$5:$o$8")) ->  | G72: 0
A73: =A72+3 -> 2020-01-20 | B73: Maandag | C73: 4 | D73: 0 | E73: 0 | F73: =SUM(INDIRECT(C73&"!$G$5:$G$8")) ->  | G73: 0
A74: =A73+1 -> 2020-01-21 | B74: Dinsdag | C74: 4 | D74: 0 | E74: 0 | F74: =SUM(INDIRECT(C74&"!$i$5:$i$8")) ->  | G74: 0
A75: 2020-01-22 | B75: Woensdag | C75: 4 | D75: 0 | E75: 0 | F75: =SUM(INDIRECT(C75&"!$k$5:$k$8")) ->  | G75: 0
A76: 2020-01-23 | B76: Donderdag | C76: 4 | D76: 0 | E76: 0 | F76: =SUM(INDIRECT(C76&"!$m$5:$m$8")) ->  | G76: 0
A77: 2020-01-24 | B77: Vrijdag | C77: 4 | D77: 0 | E77: 0 | F77: =SUM(INDIRECT(C77&"!$o$5:$o$8")) ->  | G77: 0
A78: =A77+3 -> 2020-01-27 | B78: Maandag | C78: 5 | D78: 0 | E78: 0 | F78: =SUM(INDIRECT(C78&"!$G$5:$G$8")) ->  | G78: 0
A79: =A78+1 -> 2020-01-28 | B79: Dinsdag | C79: 5 | D79: 0 | E79: 0 | F79: =SUM(INDIRECT(C79&"!$i$5:$i$8")) ->  | G79: 0
A80: 2020-01-29 | B80: Woensdag | C80: 5 | D80: 0 | E80: 0 | F80: =SUM(INDIRECT(C80&"!$k$5:$k$8")) ->  | G80: 0
A81: 2020-01-30 | B81: Donderdag | C81: 5 | D81: 0 | E81: 0 | F81: =SUM(INDIRECT(C81&"!$m$5:$m$8")) ->  | G81: 0
A82: 2020-01-31 | B82: Vrijdag | C82: 5 | D82: 0 | E82: 0 | F82: =SUM(INDIRECT(C82&"!$o$5:$o$8")) ->  | G82: 0
A83: =A82+3 -> 2020-02-03 | B83: Maandag | C83: 6 | D83: 0 | E83: 0 | F83: =SUM(INDIRECT(C83&"!$G$5:$G$8")) ->  | G83: 0
A84: =A83+1 -> 2020-02-04 | B84: Dinsdag | C84: 6 | D84: 0 | E84: 0 | F84: =SUM(INDIRECT(C84&"!$i$5:$i$8")) ->  | G84: 0
A85: 2020-02-05 | B85: Woensdag | C85: 6 | D85: 0 | E85: 0 | F85: =SUM(INDIRECT(C85&"!$k$5:$k$8")) ->  | G85: 0
A86: 2020-02-06 | B86: Donderdag | C86: 6 | D86: 0 | E86: 0 | F86: =SUM(INDIRECT(C86&"!$m$5:$m$8")) ->  | G86: 0
A87: 2020-02-07 | B87: Vrijdag | C87: 6 | D87: 0 | E87: 0 | F87: =SUM(INDIRECT(C87&"!$o$5:$o$8")) ->  | G87: 0
A88: =A87+3 -> 2020-02-10 | B88: Maandag | C88: 7 | D88: 0 | E88: 0 | F88: =SUM(INDIRECT(C88&"!$G$5:$G$8")) ->  | G88: 0
A89: =A88+1 -> 2020-02-11 | B89: Dinsdag | C89: 7 | D89: 0 | E89: 0 | F89: =SUM(INDIRECT(C89&"!$i$5:$i$8")) ->  | G89: 0
A90: 2020-02-12 | B90: Woensdag | C90: 7 | D90: 0 | E90: 0 | F90: =SUM(INDIRECT(C90&"!$k$5:$k$8")) ->  | G90: 0
A91: 2020-02-13 | B91: Donderdag | C91: 7 | D91: 0 | E91: 0 | F91: =SUM(INDIRECT(C91&"!$m$5:$m$8")) ->  | G91: 0
A92: 2020-02-14 | B92: Vrijdag | C92: 7 | D92: 0 | E92: 0 | F92: =SUM(INDIRECT(C92&"!$o$5:$o$8")) ->  | G92: 0
A93: =A92+3 -> 2020-02-17 | B93: Maandag | C93: 8 | D93: 0 | E93: 0 | F93: =SUM(INDIRECT(C93&"!$G$5:$G$8")) ->  | G93: 0
A94: =A93+1 -> 2020-02-18 | B94: Dinsdag | C94: 8 | D94: 0 | E94: 0 | F94: =SUM(INDIRECT(C94&"!$i$5:$i$8")) ->  | G94: 0
A95: 2020-02-19 | B95: Woensdag | C95: 8 | D95: 0 | E95: 0 | F95: =SUM(INDIRECT(C95&"!$k$5:$k$8")) ->  | G95: 0
A96: 2020-02-20 | B96: Donderdag | C96: 8 | D96: 0 | E96: 0 | F96: =SUM(INDIRECT(C96&"!$m$5:$m$8")) ->  | G96: 0
A97: 2020-02-21 | B97: Vrijdag | C97: 8 | D97: 0 | E97: 0 | F97: =SUM(INDIRECT(C97&"!$o$5:$o$8")) ->  | G97: 0
A98: =A97+3 -> 2020-02-24 | B98: Maandag | C98: 9 | D98: 0 | E98: 0 | F98: =SUM(INDIRECT(C98&"!$G$5:$G$8")) ->  | G98: 0
A99: =A98+1 -> 2020-02-25 | B99: Dinsdag | C99: 9 | D99: 0 | E99: 0 | F99: =SUM(INDIRECT(C99&"!$i$5:$i$8")) ->  | G99: 0
A100: 2020-02-26 | B100: Woensdag | C100: 9 | D100: 0 | E100: 0 | F100: =SUM(INDIRECT(C100&"!$k$5:$k$8")) ->  | G100: 0
A101: 2020-02-27 | B101: Donderdag | C101: 9 | D101: 0 | E101: 0 | F101: =SUM(INDIRECT(C101&"!$m$5:$m$8")) ->  | G101: 0
A102: 2020-02-28 | B102: Vrijdag | C102: 9 | D102: 0 | E102: 0 | F102: =SUM(INDIRECT(C102&"!$o$5:$o$8")) ->  | G102: 0
A103: =A102+3 -> 2020-03-02 | B103: Maandag | C103: 10 | D103: 0 | E103: 0 | F103: =SUM(INDIRECT(C103&"!$G$5:$G$8")) ->  | G103: 0
A104: =A103+1 -> 2020-03-03 | B104: Dinsdag | C104: 10 | D104: 0 | E104: 0 | F104: =SUM(INDIRECT(C104&"!$i$5:$i$8")) ->  | G104: 0
A105: 2020-03-04 | B105: Woensdag | C105: 10 | D105: 0 | E105: 0 | F105: =SUM(INDIRECT(C105&"!$k$5:$k$8")) ->  | G105: 0
A106: 2020-03-05 | B106: Donderdag | C106: 10 | D106: 0 | E106: 0 | F106: =SUM(INDIRECT(C106&"!$m$5:$m$8")) ->  | G106: 0
A107: 2020-03-06 | B107: Vrijdag | C107: 10 | D107: 0 | E107: 0 | F107: =SUM(INDIRECT(C107&"!$o$5:$o$8")) ->  | G107: 0
A108: =A107+3 -> 2020-03-09 | B108: Maandag | C108: 11 | D108: 0 | E108: 0 | F108: =SUM(INDIRECT(C108&"!$G$5:$G$8")) ->  | G108: 0
A109: =A108+1 -> 2020-03-10 | B109: Dinsdag | C109: 11 | D109: 0 | E109: 0 | F109: =SUM(INDIRECT(C109&"!$i$5:$i$8")) ->  | G109: 0
A110: 2020-03-11 | B110: Woensdag | C110: 11 | D110: 0 | E110: 0 | F110: =SUM(INDIRECT(C110&"!$k$5:$k$8")) ->  | G110: 0
A111: 2020-03-12 | B111: Donderdag | C111: 11 | D111: 0 | E111: 0 | F111: =SUM(INDIRECT(C111&"!$m$5:$m$8")) ->  | G111: 0
A112: 2020-03-13 | B112: Vrijdag | C112: 11 | D112: 0 | E112: 0 | F112: =SUM(INDIRECT(C112&"!$o$5:$o$8")) ->  | G112: 0
A113: =A112+3 -> 2020-03-16 | B113: Maandag | C113: 12 | D113: 0 | E113: 0 | F113: =SUM(INDIRECT(C113&"!$G$5:$G$8")) ->  | G113: 0
A114: =A113+1 -> 2020-03-17 | B114: Dinsdag | C114: 12 | D114: 0 | E114: 0 | F114: =SUM(INDIRECT(C114&"!$i$5:$i$8")) ->  | G114: 0
A115: 2020-03-18 | B115: Woensdag | C115: 12 | D115: 0 | E115: 0 | F115: =SUM(INDIRECT(C115&"!$k$5:$k$8")) ->  | G115: 0
A116: 2020-03-19 | B116: Donderdag | C116: 12 | D116: 0 | E116: 0 | F116: =SUM(INDIRECT(C116&"!$m$5:$m$8")) ->  | G116: 0
A117: 2020-03-20 | B117: Vrijdag | C117: 12 | D117: 0 | E117: 0 | F117: =SUM(INDIRECT(C117&"!$o$5:$o$8")) ->  | G117: 0
A118: =A117+3 -> 2020-03-23 | B118: Maandag | C118: 13 | D118: 0 | E118: 0 | F118: =SUM(INDIRECT(C118&"!$G$5:$G$8")) ->  | G118: 0
A119: =A118+1 -> 2020-03-24 | B119: Dinsdag | C119: 13 | D119: 0 | E119: 0 | F119: =SUM(INDIRECT(C119&"!$i$5:$i$8")) ->  | G119: 0
A120: 2020-03-25 | B120: Woensdag | C120: 13 | D120: 0 | E120: 0 | F120: =SUM(INDIRECT(C120&"!$k$5:$k$8")) ->  | G120: 0
A121: 2020-03-26 | B121: Donderdag | C121: 13 | D121: 0 | E121: 0 | F121: =SUM(INDIRECT(C121&"!$m$5:$m$8")) ->  | G121: 0
A122: 2020-03-27 | B122: Vrijdag | C122: 13 | D122: =VLOOKUP(C122,$A$3:$B$54,2,FALSE) -> 0 | E122: =D122/$A$1 -> 0 | F122: =SUM(INDIRECT(C122&"!$o$5:$o$8")) ->  | G122: 0
A123: =A122+3 -> 2020-03-30 | B123: Maandag | C123: 14 | D123: 0 | E123: 0 | F123: =SUM(INDIRECT(C123&"!$G$5:$G$8")) ->  | G123: 0
A124: =A123+1 -> 2020-03-31 | B124: Dinsdag | C124: =WEEKNUM(A124,2) -> 14 | D124: 0 | E124: 0 | F124: =SUM(INDIRECT(C124&"!$i$5:$i$8")) ->  | G124: 0
A125: 2020-04-01 | B125: Woensdag | C125: 14 | D125: 0 | E125: 0 | F125: =SUM(INDIRECT(C125&"!$k$5:$k$8")) ->  | G125: 0
A126: 2020-04-02 | B126: Donderdag | C126: 14 | D126: 0 | E126: 0 | F126: =SUM(INDIRECT(C126&"!$m$5:$m$8")) ->  | G126: 0
A127: 2020-04-03 | B127: Vrijdag | C127: 14 | D127: 0 | E127: 0 | F127: =SUM(INDIRECT(C127&"!$o$5:$o$8")) ->  | G127: 0
A128: =A127+3 -> 2020-04-06 | B128: Maandag | C128: 15 | D128: 0 | E128: 0 | F128: =SUM(INDIRECT(C128&"!$G$5:$G$8")) ->  | G128: 0
A129: =A128+1 -> 2020-04-07 | B129: Dinsdag | C129: 15 | D129: 0 | E129: 0 | F129: =SUM(INDIRECT(C129&"!$i$5:$i$8")) ->  | G129: 0
A130: 2020-04-08 | B130: Woensdag | C130: 15 | D130: 0 | E130: 0 | F130: =SUM(INDIRECT(C130&"!$k$5:$k$8")) ->  | G130: =IF(E130=0,0,IF(F130=0,G129,G129+E130-F130)) -> 0
A131: 2020-04-09 | B131: Donderdag | C131: 15 | D131: 0 | E131: 0 | F131: =SUM(INDIRECT(C131&"!$m$5:$m$8")) ->  | G131: 0
A132: 2020-04-10 | B132: =B127 -> Vrijdag | C132: 15 | D132: 0 | E132: 0 | F132: =SUM(INDIRECT(C132&"!$o$5:$o$8")) ->  | G132: 0
A133: =A132+3 -> 2020-04-13 | B133: Maandag | C133: 16 | D133: 0 | E133: 0 | F133: =SUM(INDIRECT(C133&"!$G$5:$G$8")) ->  | G133: 0
A134: =A133+1 -> 2020-04-14 | B134: Dinsdag | C134: 16 | D134: 0 | E134: 0 | F134: =SUM(INDIRECT(C134&"!$i$5:$i$8")) ->  | G134: 0
A135: 2020-04-15 | B135: Woensdag | C135: 16 | D135: 0 | E135: 0 | F135: =SUM(INDIRECT(C135&"!$k$5:$k$8")) ->  | G135: 0
A136: 2020-04-16 | B136: Donderdag | C136: 16 | D136: 0 | E136: 0 | F136: =SUM(INDIRECT(C136&"!$m$5:$m$8")) ->  | G136: 0
A137: 2020-04-17 | B137: Vrijdag | C137: 16 | D137: 0 | E137: 0 | F137: =SUM(INDIRECT(C137&"!$o$5:$o$8")) ->  | G137: 0
A138: 2020-04-20 | B138: Maandag | C138: 17 | D138: 0 | E138: 0 | F138: =SUM(INDIRECT(C138&"!$G$5:$G$8")) ->  | G138: 0
A139: 2020-04-21 | B139: Dinsdag | C139: 17 | D139: 0 | E139: 0 | F139: =SUM(INDIRECT(C139&"!$i$5:$i$8")) ->  | G139: 0
A140: 2020-04-22 | B140: Woensdag | C140: 17 | D140: 0 | E140: 0 | F140: =SUM(INDIRECT(C140&"!$k$5:$k$8")) ->  | G140: 0
A141: 2020-04-23 | B141: Donderdag | C141: 17 | D141: 0 | E141: 0 | F141: =SUM(INDIRECT(C141&"!$m$5:$m$8")) ->  | G141: 0
A142: 2020-04-24 | B142: Vrijdag | C142: 17 | D142: 0 | E142: 0 | F142: =SUM(INDIRECT(C142&"!$o$5:$o$8")) ->  | G142: 0
A143: 2020-04-27 | B143: Maandag | C143: 18 | D143: 0 | E143: 0 | F143: =SUM(INDIRECT(C143&"!$G$5:$G$8")) ->  | G143: 0
A144: 2020-04-28 | B144: Dinsdag | C144: 18 | D144: 0 | E144: 0 | F144: =SUM(INDIRECT(C144&"!$i$5:$i$8")) ->  | G144: 0
A145: 2020-04-29 | B145: Woensdag | C145: 18 | D145: 0 | E145: 0 | F145: =SUM(INDIRECT(C145&"!$k$5:$k$8")) ->  | G145: 0
A146: 2020-04-30 | B146: Donderdag | C146: 18 | D146: 0 | E146: 0 | F146: =SUM(INDIRECT(C146&"!$m$5:$m$8")) ->  | G146: 0
A147: 2020-05-01 | B147: Vrijdag | C147: 18 | D147: 0 | E147: 0 | F147: =SUM(INDIRECT(C147&"!$o$5:$o$8")) ->  | G147: 0
A148: 2020-05-04 | B148: Maandag | C148: 19 | D148: 0 | E148: 0 | F148: =SUM(INDIRECT(C148&"!$G$5:$G$8")) ->  | G148: 0
A149: 2020-05-05 | B149: Dinsdag | C149: 19 | D149: 0 | E149: 0 | F149: =SUM(INDIRECT(C149&"!$i$5:$i$8")) ->  | G149: 0
A150: 2020-05-06 | B150: Woensdag | C150: 19 | D150: 0 | E150: 0 | F150: =SUM(INDIRECT(C150&"!$k$5:$k$8")) ->  | G150: 0
A151: 2020-05-07 | B151: Donderdag | C151: 19 | D151: 0 | E151: 0 | F151: =SUM(INDIRECT(C151&"!$m$5:$m$8")) ->  | G151: 0
A152: 2020-05-08 | B152: Vrijdag | C152: 19 | D152: 0 | E152: 0 | F152: =SUM(INDIRECT(C152&"!$o$5:$o$8")) ->  | G152: 0
A153: 2020-05-11 | B153: Maandag | C153: 20 | D153: 0 | E153: 0 | F153: =SUM(INDIRECT(C153&"!$G$5:$G$8")) ->  | G153: 0
A154: 2020-05-12 | B154: Dinsdag | C154: 20 | D154: 0 | E154: 0 | F154: =SUM(INDIRECT(C154&"!$i$5:$i$8")) ->  | G154: 0
A155: 2020-05-13 | B155: Woensdag | C155: 20 | D155: 0 | E155: 0 | F155: =SUM(INDIRECT(C155&"!$k$5:$k$8")) ->  | G155: 0
A156: 2020-05-14 | B156: Donderdag | C156: 20 | D156: 0 | E156: 0 | F156: =SUM(INDIRECT(C156&"!$m$5:$m$8")) ->  | G156: 0
A157: 2020-05-15 | B157: Vrijdag | C157: 20 | D157: 0 | E157: 0 | F157: =SUM(INDIRECT(C157&"!$o$5:$o$8")) ->  | G157: 0
A158: 2020-05-18 | B158: Maandag | C158: 21 | D158: 0 | E158: 0 | F158: =SUM(INDIRECT(C158&"!$G$5:$G$8")) ->  | G158: 0
A159: 2020-05-19 | B159: Dinsdag | C159: 21 | D159: 0 | E159: 0 | F159: =SUM(INDIRECT(C159&"!$i$5:$i$8")) ->  | G159: 0
A160: 2020-05-20 | B160: Woensdag | C160: 21 | D160: 0 | E160: 0 | F160: =SUM(INDIRECT(C160&"!$k$5:$k$8")) ->  | G160: 0
A161: 2020-05-21 | B161: Donderdag | C161: 21 | D161: 0 | E161: 0 | F161: =SUM(INDIRECT(C161&"!$m$5:$m$8")) ->  | G161: 0
A162: 2020-05-22 | B162: Vrijdag | C162: 21 | D162: 0 | E162: 0 | F162: =SUM(INDIRECT(C162&"!$o$5:$o$8")) ->  | G162: 0
A163: 2020-05-25 | B163: Maandag | C163: 22 | D163: 0 | E163: 0 | F163: =SUM(INDIRECT(C163&"!$G$5:$G$8")) ->  | G163: 0
A164: 2020-05-26 | B164: Dinsdag | C164: 22 | D164: 0 | E164: 0 | F164: =SUM(INDIRECT(C164&"!$i$5:$i$8")) ->  | G164: 0
A165: 2020-05-27 | B165: Woensdag | C165: 22 | D165: 0 | E165: 0 | F165: =SUM(INDIRECT(C165&"!$k$5:$k$8")) ->  | G165: 0
A166: 2020-05-28 | B166: Donderdag | C166: 22 | D166: 0 | E166: 0 | F166: =SUM(INDIRECT(C166&"!$m$5:$m$8")) ->  | G166: 0
A167: 2020-05-29 | B167: Vrijdag | C167: 22 | D167: 0 | E167: 0 | F167: =SUM(INDIRECT(C167&"!$o$5:$o$8")) ->  | G167: 0
A168: 2020-06-01 | B168: Maandag | C168: 23 | D168: 0 | E168: 0 | F168: =SUM(INDIRECT(C168&"!$G$5:$G$8")) ->  | G168: 0
A169: 2020-06-02 | B169: Dinsdag | C169: 23 | D169: 0 | E169: 0 | F169: =SUM(INDIRECT(C169&"!$i$5:$i$8")) ->  | G169: 0
A170: 2020-06-03 | B170: Woensdag | C170: 23 | D170: 0 | E170: 0 | F170: =SUM(INDIRECT(C170&"!$k$5:$k$8")) ->  | G170: 0
A171: 2020-06-04 | B171: Donderdag | C171: 23 | D171: 0 | E171: 0 | F171: =SUM(INDIRECT(C171&"!$m$5:$m$8")) ->  | G171: 0
A172: 2020-06-05 | B172: Vrijdag | C172: 23 | D172: 0 | E172: 0 | F172: =SUM(INDIRECT(C172&"!$o$5:$o$8")) ->  | G172: 0
A173: 2020-06-08 | B173: Maandag | C173: 24 | D173: 0 | E173: 0 | F173: =SUM(INDIRECT(C173&"!$G$5:$G$8")) ->  | G173: 0
A174: 2020-06-09 | B174: Dinsdag | C174: 24 | D174: 0 | E174: 0 | F174: =SUM(INDIRECT(C174&"!$i$5:$i$8")) ->  | G174: 0
A175: 2020-06-10 | B175: Woensdag | C175: 24 | D175: 0 | E175: 0 | F175: =SUM(INDIRECT(C175&"!$k$5:$k$8")) ->  | G175: 0
A176: 2020-06-11 | B176: Donderdag | C176: 24 | D176: 0 | E176: 0 | F176: =SUM(INDIRECT(C176&"!$m$5:$m$8")) ->  | G176: 0
A177: 2020-06-12 | B177: Vrijdag | C177: 24 | D177: 0 | E177: 0 | F177: =SUM(INDIRECT(C177&"!$o$5:$o$8")) ->  | G177: 0
A178: 2020-06-15 | B178: Maandag | C178: 25 | D178: 0 | E178: 0 | F178: =SUM(INDIRECT(C178&"!$G$5:$G$8")) ->  | G178: 0
A179: 2020-06-16 | B179: Dinsdag | C179: 25 | D179: 0 | E179: 0 | F179: =SUM(INDIRECT(C179&"!$i$5:$i$8")) ->  | G179: 0
A180: 2020-06-17 | B180: Woensdag | C180: 25 | D180: 0 | E180: 0 | F180: =SUM(INDIRECT(C180&"!$k$5:$k$8")) ->  | G180: 0
A181: 2020-06-18 | B181: Donderdag | C181: 25 | D181: 0 | E181: 0 | F181: =SUM(INDIRECT(C181&"!$m$5:$m$8")) ->  | G181: 0
A182: 2020-06-19 | B182: Vrijdag | C182: 25 | D182: 0 | E182: 0 | F182: =SUM(INDIRECT(C182&"!$o$5:$o$8")) ->  | G182: 0
A183: 2020-06-22 | B183: Maandag | C183: 26 | D183: 0 | E183: 0 | F183: =SUM(INDIRECT(C183&"!$G$5:$G$8")) ->  | G183: 0
A184: 2020-06-23 | B184: Dinsdag | C184: 26 | D184: 0 | E184: 0 | F184: =SUM(INDIRECT(C184&"!$i$5:$i$8")) ->  | G184: 0
A185: 2020-06-24 | B185: Woensdag | C185: 26 | D185: 0 | E185: 0 | F185: =SUM(INDIRECT(C185&"!$k$5:$k$8")) ->  | G185: 0
A186: 2020-06-25 | B186: Donderdag | C186: 26 | D186: =VLOOKUP(C186,$A$3:$B$54,2,FALSE) -> 0 | E186: =D186/$A$1 -> 0 | F186: =SUM(INDIRECT(C186&"!$m$5:$m$8")) ->  | G186: 0
A187: 2020-06-26 | B187: Vrijdag | C187: 26 | D187: 0 | E187: 0 | F187: =SUM(INDIRECT(C187&"!$o$5:$o$8")) ->  | G187: 0
A188: 2020-06-29 | B188: Maandag | C188: =WEEKNUM(A188,2) -> 27 | D188: 0 | E188: 0 | F188: =SUM(INDIRECT(C188&"!$G$5:$G$8")) ->  | G188: 0
A189: 2020-06-30 | B189: Dinsdag | C189: 27 | D189: 0 | E189: 0 | F189: =SUM(INDIRECT(C189&"!$i$5:$i$8")) ->  | G189: 0
A190: 2020-07-01 | B190: Woensdag | C190: 27 | D190: 0 | E190: 0 | F190: =SUM(INDIRECT(C190&"!$k$5:$k$8")) ->  | G190: 0
A191: 2020-07-02 | B191: Donderdag | C191: 27 | D191: 0 | E191: 0 | F191: =SUM(INDIRECT(C191&"!$m$5:$m$8")) ->  | G191: 0
A192: 2020-07-03 | B192: Vrijdag | C192: 27 | D192: 0 | E192: 0 | F192: =SUM(INDIRECT(C192&"!$o$5:$o$8")) ->  | G192: 0
A193: 2020-07-06 | B193: Maandag | C193: 28 | D193: 0 | E193: 0 | F193: =SUM(INDIRECT(C193&"!$G$5:$G$8")) ->  | G193: 0
A194: 2020-07-07 | B194: Dinsdag | C194: 28 | D194: 0 | E194: 0 | F194: =SUM(INDIRECT(C194&"!$i$5:$i$8")) ->  | G194: =IF(E194=0,0,IF(F194=0,G193,G193+E194-F194)) -> 0
A195: 2020-07-08 | B195: Woensdag | C195: 28 | D195: 0 | E195: 0 | F195: =SUM(INDIRECT(C195&"!$k$5:$k$8")) ->  | G195: 0
A196: 2020-07-09 | B196: =B191 -> Donderdag | C196: 28 | D196: 0 | E196: 0 | F196: =SUM(INDIRECT(C196&"!$m$5:$m$8")) ->  | G196: 0
A197: 2020-07-10 | B197: Vrijdag | C197: 28 | D197: 0 | E197: 0 | F197: =SUM(INDIRECT(C197&"!$o$5:$o$8")) ->  | G197: 0
A198: =A197+3 -> 2020-07-13 | B198: Maandag | C198: 29 | D198: 0 | E198: 0 | F198: =SUM(INDIRECT(C198&"!$G$5:$G$8")) ->  | G198: 0
A199: =A198+1 -> 2020-07-14 | B199: Dinsdag | C199: 29 | D199: 0 | E199: 0 | F199: =SUM(INDIRECT(C199&"!$i$5:$i$8")) ->  | G199: 0
A200: 2020-07-15 | B200: Woensdag | C200: 29 | D200: 0 | E200: 0 | F200: =SUM(INDIRECT(C200&"!$k$5:$k$8")) ->  | G200: 0
A201: 2020-07-16 | B201: Donderdag | C201: 29 | D201: 0 | E201: 0 | F201: =SUM(INDIRECT(C201&"!$m$5:$m$8")) ->  | G201: 0
A202: 2020-07-17 | B202: Vrijdag | C202: 29 | D202: 0 | E202: 0 | F202: =SUM(INDIRECT(C202&"!$o$5:$o$8")) ->  | G202: 0
... 193 more rows

Sheet 1
B2: Year/week | C2: 2020 | D2: 1 | F2: Aantal Blocks | J2: =SUM(F11:O11) -> 14
F3: Total week output | J3: =SUM(F9:O9) -> 27300 | K3: Target output/day | O3: 10000
B4: Output | F4: =DATEVALUE("01-01-"&$C$2)+D2*7-(10-1) -> 2019-12-30 | H4: =WORKDAY.INTL(F4,1) -> 2019-12-31 | J4: =WORKDAY.INTL(F4,2) -> 2020-01-01 | L4: =WORKDAY.INTL(F4,3) -> 2020-01-02 | N4: =WORKDAY.INTL(F4,4) -> 2020-01-03
B5: Output block 1 | G5: =F5*(35*5) -> 0 | H5: 6 | I5: =H5*(35*5) -> 1050 | J5: 12 | K5: =J5*(35*5) -> 2100 | L5: 5 | M5: =L5*(35*5) -> 875 | O5: =N5*(35*5) -> 0
B6: Output block 2 | F6: 21 | G6: =F6*(35*5) -> 3675 | H6: 22 | I6: 3850 | K6: =J6*(35*5) -> 0 | L6: 12 | M6: =L6*(35*5) -> 2100 | O6: =N6*(35*5) -> 0
B7: Output block 3 | F7: 7 | G7: 1225 | H7: 9 | I7: 1575 | J7: 8 | K7: 1400 | L7: 8 | M7: 1400 | N7: 15 | O7: 2625
B8: Output block 4 | G8: 0 | H8: 4 | I8: 700 | J8: 15 | K8: 2625 | L8: 12 | M8: 2100 | O8: 0
B9: Daily Output | F9: =SUM(G5:G8) -> 4900 | H9: =SUM(I5:I8) -> 7175 | J9: =SUM(K5:K8) -> 6125 | L9: =SUM(M5:M8) -> 6475 | N9: =SUM(O5:O8) -> 2625
B10: % Output / day | C10: Average | D10: =AVERAGE(F10:O10) -> 0.546 | F10: =F9/O3 -> 0.49 | H10: =H9/O3 -> 0.7175 | J10: =J9/O3 -> 0.6125 | L10: =L9/O3 -> 0.6475 | N10: =N9/O3 -> 0.2625
B11: Aantal blocks | F11: =COUNTA(F5:F8) -> 2 | H11: =COUNTA(H5:H8) -> 4 | J11: =COUNTA(J5:J8) -> 3 | L11: =COUNTA(L5:L8) -> 4 | N11: =COUNTA(N5:N8) -> 1
B13: Remarks | F13: =F4 -> 2019-12-30 | H13: =H4 -> 2019-12-31 | J13: =J4 -> 2020-01-01 | L13: =L4 -> 2020-01-02 | N13: =N4 -> 2020-01-03
B14: Block 1
B17: Block 2
B20: Block 3
B23: Block 4

Sheet 2
B2: Year/week | C2: 2020 | D2: 2 | F2: Aantal Blocks | J2: =SUM(F11:O11) -> 16
F3: Total week output | J3: =SUM(F9:O9) -> 29750 | K3: Target output/day | O3: 10000
B4: Output | F4: =DATEVALUE("01-01-"&$C$2)+D2*7-(10-1) -> 2020-01-06 | H4: =WORKDAY.INTL(F4,1) -> 2020-01-07 | J4: =WORKDAY.INTL(F4,2) -> 2020-01-08 | L4: =WORKDAY.INTL(F4,3) -> 2020-01-09 | N4: =WORKDAY.INTL(F4,4) -> 2020-01-10
B5: Output block 1 | F5: 10 | G5: =F5*(35*5) -> 1750 | H5: 7 | I5: =H5*(35*5) -> 1225 | K5: =J5*(35*5) -> 0 | L5: 11 | M5: =L5*(35*5) -> 1925 | N5: 8 | O5: =N5*(35*5) -> 1400
B6: Output block 2 | F6: 18 | G6: =F6*(35*5) -> 3150 | H6: 20 | I6: 3500 | J6: 11 | K6: =J6*(35*5) -> 1925 | L6: 9 | M6: =L6*(35*5) -> 1575 | N6: 21 | O6: =N6*(35*5) -> 3675
B7: Output block 3 | F7: 7 | G7: 1225 | H7: 8 | I7: 1400 | J7: 9 | K7: 1575 | L7: 9 | M7: 1575 | O7: 0
B8: Output block 4 | G8: 0 | H8: 5 | I8: 875 | J8: 12 | K8: 2100 | L8: 5 | M8: 875 | O8: 0
B9: Daily Output | F9: =SUM(G5:G8) -> 6125 | H9: =SUM(I5:I8) -> 7000 | J9: =SUM(K5:K8) -> 5600 | L9: =SUM(M5:M8) -> 5950 | N9: =SUM(O5:O8) -> 5075
B10: % Output / day | C10: Average | D10: =AVERAGE(F10:O10) -> 0.595 | F10: =F9/O3 -> 0.6125 | H10: =H9/O3 -> 0.7 | J10: =J9/O3 -> 0.56 | L10: =L9/O3 -> 0.595 | N10: =N9/O3 -> 0.5075
B11: Aantal blocks | F11: =COUNTA(F5:F8) -> 3 | H11: =COUNTA(H5:H8) -> 4 | J11: =COUNTA(J5:J8) -> 3 | L11: =COUNTA(L5:L8) -> 4 | N11: =COUNTA(N5:N8) -> 2
B13: Remarks | F13: =F4 -> 2020-01-06 | H13: =H4 -> 2020-01-07 | J13: =J4 -> 2020-01-08 | L13: =L4 -> 2020-01-09 | N13: =N4 -> 2020-01-10
B14: Block 1
B17: Block 2
B20: Block 3
B23: Block 4

Sheet Planning en Output (2)
A1: 5 | C1: Invullen | D1: jaar | E1: 2020
A2: Week | B2: Gepland | C2: Output | D2: Achterstand | E2: Aantal blokken niet geclipt | G2: Door het jaartal in cel C3 past de volledige lijst zich aan met het nieuwe jaar
A3: 1 | B3: 29500 | C3: =IFERROR(IF(B3<>"",SUM(INDIRECT(A3&"!G$5:G$8"))+SUM(INDIRECT(A3&"!I$5:i$8"))+SUM(INDIRECT(A3&"!K$5:k$8"))+SUM(INDIRECT(A3&"!m$5:m$8"))+SUM(INDIRECT(A3&"!o$5:o$8")),""),"") -> 27300 | D3: =IFERROR(IF(B3<>"",B3-C3,""),"") -> 2200 | E3: =IFERROR(COUNTIF(INDIRECT(A3&"!$G$5:$G$8"),0)+COUNTIF(INDIRECT(A3&"!$i$5:$i$8"),0)+COUNTIF(INDIRECT(A3&"!$k$5:$k$8"),0)+COUNTIF(INDIRECT(A3&"!$m$5:$m$8"),0)+COUNTIF(INDIRECT(A3&"!$o$5:$o$8"),0),"-") -> 6
A4: 2 | B4: 31500 | C4: =IFERROR(IF(B4<>"",SUM(INDIRECT(A4&"!G$5:G$8"))+SUM(INDIRECT(A4&"!I$5:i$8"))+SUM(INDIRECT(A4&"!K$5:k$8"))+SUM(INDIRECT(A4&"!m$5:m$8"))+SUM(INDIRECT(A4&"!o$5:o$8")),""),"") -> 29750 | D4: =IFERROR(IF(B4<>"",B4-C4,""),"") -> 1750 | E4: =IFERROR(COUNTIF(INDIRECT(A4&"!$G$5:$G$8"),0)+COUNTIF(INDIRECT(A4&"!$i$5:$i$8"),0)+COUNTIF(INDIRECT(A4&"!$k$5:$k$8"),0)+COUNTIF(INDIRECT(A4&"!$m$5:$m$8"),0)+COUNTIF(INDIRECT(A4&"!$o$5:$o$8"),0),"-") -> 4 | G4: Als B3 ingevuld is word automatisch B4 zichtbaar enz…
A5: =A4+1 -> 3 | E5: -
A6: 4 | E6: -
A7: 5 | E7: -
A8: 6 | E8: -
A9: 7 | E9: -
A10: 8 | E10: -
A11: 9 | E11: -
A12: 10 | E12: -
A13: 11 | E13: -
A14: 12 | E14: -
A15: 13 | E15: -
A16: 14 | E16: -
A17: 15 | E17: -
A18: 16 | E18: -
A19: 17 | E19: -
A20: 18 | E20: -
A21: 19 | E21: -
A22: 20 | E22: -
A23: 21 | E23: -
A24: 22 | E24: -
A25: 23 | E25: -
A26: 24 | E26: -
A27: 25 | E27: -
A28: 26 | E28: -
A29: 27 | E29: -
A30: 28 | E30: -
A31: 29 | E31: -
A32: 30 | E32: -
A33: 31 | E33: -
A34: 32 | E34: -
A35: 33 | E35: -
A36: 34 | E36: -
A37: 35 | E37: -
A38: 36 | E38: -
A39: 37 | E39: -
A40: 38 | E40: -
A41: 39 | E41: -
A42: 40 | E42: -
A43: =A42+1 -> 41 | E43: -
A44: =A43+1 -> 42 | E44: -
A45: 43 | E45: -
A46: 44 | E46: -
A47: 45 | E47: -
A48: 46 | E48: -
A49: 47 | E49: -
A50: 48 | E50: -
A51: 49 | E51: -
A52: 50 | E52: -
A53: 51 | E53: -
A54: 52 | E54: -
A55: 53
A57: Week | B57: Gepland per week | C57: datum | D57: Gepland op maandag | E57: Output | F57: Achterstand | G57: datum | H57: Gepland op dinsdag | I57: Output | J57: Achterstand | K57: datum | L57: Gepland op woensdag | M57: Output | N57: Achterstand | O57: datum | P57: Gepland op donderdag | Q57: Output | R57: Achterstand | S57: datum | T57: Gepland op vrijdag | U57: Output | V57: Achterstand
A58: 1 | B58: =VLOOKUP(A58,$A$3:$B$54,2,FALSE) -> 29500 | C58: =DATE($E$1,1,4)-WEEKDAY(DATE($E$1,1,4),2)+7*($A58-1)+"1" -> 2019-12-30 | D58: =$B58/$A$1 -> 5900 | E58: =IF($B58>0,SUM(INDIRECT($A58&"!$G$5:$G$8")),"") -> 4900 | F58: =IF(E58<>"",D58-E58,"") -> 1000 | G58: =DATE($E$1,1,4)-WEEKDAY(DATE($E$1,1,4),2)+7*($A58-1)+"2" -> 2019-12-31 | H58: =$B58/$A$1 -> 5900 | I58: =IF($B58>0,SUM(INDIRECT($A58&"!$i$5:$i$8")),"") -> 7175 | J58: =IF(I58<>"",H58-I58,"") -> -1275 | K58: =DATE($E$1,1,4)-WEEKDAY(DATE($E$1,1,4),2)+7*($A58-1)+"3" -> 2020-01-01 | L58: =$B58/$A$1 -> 5900 | M58: =IF($B58>0,SUM(INDIRECT($A58&"!$k$5:$k$8")),"") -> 6125 | N58: =IF(M58<>"",L58-M58,"") -> -225 | O58: =DATE($E$1,1,4)-WEEKDAY(DATE($E$1,1,4),2)+7*($A58-1)+"4" -> 2020-01-02 | P58: =$B58/$A$1 -> 5900 | Q58: =IF($B58>0,SUM(INDIRECT($A58&"!$m$5:$m$8")),"") -> 6475 | R58: =IF(Q58<>"",P58-Q58,"") -> -575 | S58: =DATE($E$1,1,4)-WEEKDAY(DATE($E$1,1,4),2)+7*($A58-1)+"5" -> 2020-01-03 | T58: =$B58/$A$1 -> 5900 | U58: =IF($B58>0,SUM(INDIRECT($A58&"!$o$5:$o$8")),"") -> 2625 | V58: =IF(U58<>"",T58-U58,"") -> 3275
A59: 2 | B59: =VLOOKUP(A59,$A$3:$B$54,2,FALSE) -> 31500 | C59: =DATE($E$1,1,4)-WEEKDAY(DATE($E$1,1,4),2)+7*($A59-1)+"1" -> 2020-01-06 | D59: =$B59/$A$1 -> 6300 | E59: 6125 | F59: =IF(E59<>"",D59-E59,"") -> 175 | G59: =DATE($E$1,1,4)-WEEKDAY(DATE($E$1,1,4),2)+7*($A59-1)+"2" -> 2020-01-07 | H59: =$B59/$A$1 -> 6300 | I59: =IF($B59>0,SUM(INDIRECT($A59&"!$i$5:$i$8")),"") -> 7000 | J59: =IF(I59<>"",H59-I59,"") -> -700 | K59: =DATE($E$1,1,4)-WEEKDAY(DATE($E$1,1,4),2)+7*($A59-1)+"3" -> 2020-01-08 | L59: =$B59/$A$1 -> 6300 | M59: =IF($B59>0,SUM(INDIRECT($A59&"!$k$5:$k$8")),"") -> 5600 | N59: =IF(M59<>"",L59-M59,"") -> 700 | O59: =DATE($E$1,1,4)-WEEKDAY(DATE($E$1,1,4),2)+7*($A59-1)+"4" -> 2020-01-09 | P59: =$B59/$A$1 -> 6300 | Q59: =IF($B59>0,SUM(INDIRECT($A59&"!$m$5:$m$8")),"") -> 5950 | R59: =IF(Q59<>"",P59-Q59,"") -> 350 | S59: =DATE($E$1,1,4)-WEEKDAY(DATE($E$1,1,4),2)+7*($A59-1)+"5" -> 2020-01-10 | T59: =$B59/$A$1 -> 6300 | U59: =IF($B59>0,SUM(INDIRECT($A59&"!$o$5:$o$8")),"") -> 5075 | V59: =IF(U59<>"",T59-U59,"") -> 1225
A60: 3 | B60: 0 | C60: 2020-01-13 | D60: 0 | G60: 2020-01-14 | H60: 0 | K60: 2020-01-15 | L60: 0 | O60: 2020-01-16 | P60: 0 | S60: 2020-01-17 | T60: 0
A61: 4 | B61: 0 | C61: 2020-01-20 | D61: 0 | G61: 2020-01-21 | H61: 0 | K61: 2020-01-22 | L61: 0 | O61: 2020-01-23 | P61: 0 | S61: 2020-01-24 | T61: 0
A62: 5 | B62: 0 | C62: 2020-01-27 | D62: 0 | G62: 2020-01-28 | H62: 0 | K62: 2020-01-29 | L62: 0 | O62: 2020-01-30 | P62: 0 | S62: 2020-01-31 | T62: 0
A63: 6 | B63: 0 | C63: 2020-02-03 | D63: 0 | G63: 2020-02-04 | H63: 0 | K63: 2020-02-05 | L63: 0 | O63: 2020-02-06 | P63: 0 | S63: 2020-02-07 | T63: 0
A64: 7 | B64: 0 | C64: 2020-02-10 | D64: 0 | G64: 2020-02-11 | H64: 0 | K64: 2020-02-12 | L64: 0 | O64: 2020-02-13 | P64: 0 | S64: 2020-02-14 | T64: 0
A65: 8 | B65: 0 | C65: 2020-02-17 | D65: 0 | G65: 2020-02-18 | H65: 0 | K65: 2020-02-19 | L65: 0 | O65: 2020-02-20 | P65: 0 | S65: 2020-02-21 | T65: 0
A66: 9 | B66: 0 | C66: 2020-02-24 | D66: 0 | G66: 2020-02-25 | H66: 0 | K66: 2020-02-26 | L66: 0 | O66: 2020-02-27 | P66: 0 | S66: 2020-02-28 | T66: 0
A67: 10 | B67: 0 | C67: 2020-03-02 | D67: 0 | G67: 2020-03-03 | H67: 0 | K67: 2020-03-04 | L67: 0 | O67: 2020-03-05 | P67: 0 | S67: 2020-03-06 | T67: 0
A68: 11 | B68: 0 | C68: 2020-03-09 | D68: 0 | G68: 2020-03-10 | H68: 0 | K68: 2020-03-11 | L68: 0 | O68: 2020-03-12 | P68: 0 | S68: 2020-03-13 | T68: 0
A69: 12 | B69: 0 | C69: 2020-03-16 | D69: 0 | G69: 2020-03-17 | H69: 0 | K69: 2020-03-18 | L69: 0 | O69: 2020-03-19 | P69: 0 | S69: 2020-03-20 | T69: 0
A70: 13 | B70: 0 | C70: 2020-03-23 | D70: 0 | G70: 2020-03-24 | H70: 0 | K70: 2020-03-25 | L70: 0 | O70: 2020-03-26 | P70: 0 | S70: 2020-03-27 | T70: 0
A71: 14 | B71: 0 | C71: 2020-03-30 | D71: 0 | G71: 2020-03-31 | H71: 0 | K71: 2020-04-01 | L71: 0 | O71: 2020-04-02 | P71: 0 | S71: 2020-04-03 | T71: 0
A72: 15 | B72: 0 | C72: 2020-04-06 | D72: 0 | G72: 2020-04-07 | H72: 0 | K72: 2020-04-08 | L72: 0 | O72: 2020-04-09 | P72: 0 | S72: 2020-04-10 | T72: 0
A73: 16 | B73: 0 | C73: 2020-04-13 | D73: 0 | G73: 2020-04-14 | H73: 0 | K73: 2020-04-15 | L73: 0 | O73: 2020-04-16 | P73: 0 | S73: 2020-04-17 | T73: 0
A74: 17 | B74: 0 | C74: 2020-04-20 | D74: 0 | G74: 2020-04-21 | H74: 0 | K74: 2020-04-22 | L74: 0 | O74: 2020-04-23 | P74: 0 | S74: 2020-04-24 | T74: 0
A75: 18 | B75: 0 | C75: 2020-04-27 | D75: 0 | G75: 2020-04-28 | H75: 0 | K75: 2020-04-29 | L75: 0 | O75: 2020-04-30 | P75: 0 | S75: 2020-05-01 | T75: 0
A76: 19 | B76: 0 | C76: 2020-05-04 | D76: 0 | G76: 2020-05-05 | H76: 0 | K76: 2020-05-06 | L76: 0 | O76: 2020-05-07 | P76: 0 | S76: 2020-05-08 | T76: 0
A77: 20 | B77: 0 | C77: 2020-05-11 | D77: 0 | G77: 2020-05-12 | H77: 0 | K77: 2020-05-13 | L77: 0 | O77: 2020-05-14 | P77: 0 | S77: 2020-05-15 | T77: 0
A78: 21 | B78: 0 | C78: 2020-05-18 | D78: 0 | G78: 2020-05-19 | H78: 0 | K78: 2020-05-20 | L78: 0 | O78: 2020-05-21 | P78: 0 | S78: 2020-05-22 | T78: 0
A79: 22 | B79: 0 | C79: 2020-05-25 | D79: 0 | G79: 2020-05-26 | H79: 0 | K79: 2020-05-27 | L79: 0 | O79: 2020-05-28 | P79: 0 | S79: 2020-05-29 | T79: 0
A80: 23 | B80: 0 | C80: 2020-06-01 | D80: 0 | G80: 2020-06-02 | H80: 0 | K80: 2020-06-03 | L80: 0 | O80: 2020-06-04 | P80: 0 | S80: 2020-06-05 | T80: 0
A81: 24 | B81: 0 | C81: 2020-06-08 | D81: 0 | G81: 2020-06-09 | H81: 0 | K81: 2020-06-10 | L81: 0 | O81: 2020-06-11 | P81: 0 | S81: 2020-06-12 | T81: 0
A82: 25 | B82: 0 | C82: 2020-06-15 | D82: 0 | G82: 2020-06-16 | H82: 0 | K82: 2020-06-17 | L82: 0 | O82: 2020-06-18 | P82: 0 | S82: 2020-06-19 | T82: 0
A83: 26 | B83: 0 | C83: 2020-06-22 | D83: 0 | G83: 2020-06-23 | H83: 0 | K83: 2020-06-24 | L83: 0 | O83: 2020-06-25 | P83: 0 | S83: 2020-06-26 | T83: 0
A84: 27 | B84: 0 | C84: 2020-06-29 | D84: 0 | G84: 2020-06-30 | H84: 0 | K84: 2020-07-01 | L84: 0 | O84: 2020-07-02 | P84: 0 | S84: 2020-07-03 | T84: 0
A85: 28 | B85: 0 | C85: 2020-07-06 | D85: 0 | G85: 2020-07-07 | H85: 0 | K85: 2020-07-08 | L85: 0 | O85: 2020-07-09 | P85: 0 | S85: 2020-07-10 | T85: 0
A86: 29 | B86: 0 | C86: 2020-07-13 | D86: 0 | G86: 2020-07-14 | H86: 0 | K86: 2020-07-15 | L86: 0 | O86: 2020-07-16 | P86: 0 | S86: 2020-07-17 | T86: 0
A87: 30 | B87: 0 | C87: 2020-07-20 | D87: 0 | G87: 2020-07-21 | H87: 0 | K87: 2020-07-22 | L87: 0 | O87: 2020-07-23 | P87: 0 | S87: 2020-07-24 | T87: 0
A88: 31 | B88: 0 | C88: 2020-07-27 | D88: 0 | G88: 2020-07-28 | H88: 0 | K88: 2020-07-29 | L88: 0 | O88: 2020-07-30 | P88: 0 | S88: 2020-07-31 | T88: 0
A89: 32 | B89: 0 | C89: 2020-08-03 | D89: 0 | G89: 2020-08-04 | H89: 0 | K89: 2020-08-05 | L89: 0 | O89: 2020-08-06 | P89: 0 | S89: 2020-08-07 | T89: 0
A90: 33 | B90: 0 | C90: 2020-08-10 | D90: 0 | G90: 2020-08-11 | H90: 0 | K90: 2020-08-12 | L90: 0 | O90: 2020-08-13 | P90: 0 | S90: 2020-08-14 | T90: 0
A91: 34 | B91: 0 | C91: 2020-08-17 | D91: 0 | G91: 2020-08-18 | H91: 0 | K91: 2020-08-19 | L91: 0 | O91: 2020-08-20 | P91: 0 | S91: 2020-08-21 | T91: 0
A92: 35 | B92: 0 | C92: 2020-08-24 | D92: 0 | G92: 2020-08-25 | H92: 0 | K92: 2020-08-26 | L92: 0 | O92: 2020-08-27 | P92: 0 | S92: 2020-08-28 | T92: 0
A93: 36 | B93: 0 | C93: 2020-08-31 | D93: 0 | G93: 2020-09-01 | H93: 0 | K93: 2020-09-02 | L93: 0 | O93: 2020-09-03 | P93: 0 | S93: 2020-09-04 | T93: 0
A94: 37 | B94: 0 | C94: 2020-09-07 | D94: 0 | G94: 2020-09-08 | H94: 0 | K94: 2020-09-09 | L94: 0 | O94: 2020-09-10 | P94: 0 | S94: 2020-09-11 | T94: 0
A95: 38 | B95: 0 | C95: 2020-09-14 | D95: 0 | G95: 2020-09-15 | H95: 0 | K95: 2020-09-16 | L95: 0 | O95: 2020-09-17 | P95: 0 | S95: 2020-09-18 | T95: 0
A96: 39 | B96: 0 | C96: 2020-09-21 | D96: 0 | G96: 2020-09-22 | H96: 0 | K96: 2020-09-23 | L96: 0 | O96: 2020-09-24 | P96: 0 | S96: 2020-09-25 | T96: 0
A97: 40 | B97: 0 | C97: 2020-09-28 | D97: 0 | G97: 2020-09-29 | H97: 0 | K97: 2020-09-30 | L97: 0 | O97: 2020-10-01 | P97: 0 | S97: 2020-10-02 | T97: 0
A98: 41 | B98: 0 | C98: 2020-10-05 | D98: 0 | G98: 2020-10-06 | H98: 0 | K98: 2020-10-07 | L98: 0 | O98: 2020-10-08 | P98: 0 | S98: 2020-10-09 | T98: 0
A99: 42 | B99: 0 | C99: 2020-10-12 | D99: 0 | G99: 2020-10-13 | H99: 0 | K99: 2020-10-14 | L99: 0 | O99: 2020-10-15 | P99: 0 | S99: 2020-10-16 | T99: 0
A100: 43 | B100: 0 | C100: 2020-10-19 | D100: 0 | G100: 2020-10-20 | H100: 0 | K100: 2020-10-21 | L100: 0 | O100: 2020-10-22 | P100: 0 | S100: 2020-10-23 | T100: 0
A101: 44 | B101: 0 | C101: 2020-10-26 | D101: 0 | G101: 2020-10-27 | H101: 0 | K101: 2020-10-28 | L101: 0 | O101: 2020-10-29 | P101: 0 | S101: 2020-10-30 | T101: 0
A102: 45 | B102: 0 | C102: 2020-11-02 | D102: 0 | G102: 2020-11-03 | H102: 0 | K102: 2020-11-04 | L102: 0 | O102: 2020-11-05 | P102: 0 | S102: 2020-11-06 | T102: 0
A103: 46 | B103: 0 | C103: 2020-11-09 | D103: 0 | G103: 2020-11-10 | H103: 0 | K103: 2020-11-11 | L103: 0 | O103: 2020-11-12 | P103: 0 | S103: 2020-11-13 | T103: 0
A104: 47 | B104: 0 | C104: 2020-11-16 | D104: 0 | G104: 2020-11-17 | H104: 0 | K104: 2020-11-18 | L104: 0 | O104: 2020-11-19 | P104: 0 | S104: 2020-11-20 | T104: 0
A105: 48 | B105: 0 | C105: 2020-11-23 | D105: 0 | G105: 2020-11-24 | H105: 0 | K105: 2020-11-25 | L105: 0 | O105: 2020-11-26 | P105: 0 | S105: 2020-11-27 | T105: 0
A106: 49 | B106: 0 | C106: 2020-11-30 | D106: 0 | G106: 2020-12-01 | H106: 0 | K106: 2020-12-02 | L106: 0 | O106: 2020-12-03 | P106: 0 | S106: 2020-12-04 | T106: 0
A107: 50 | B107: 0 | C107: 2020-12-07 | D107: 0 | G107: 2020-12-08 | H107: 0 | K107: 2020-12-09 | L107: 0 | O107: 2020-12-10 | P107: 0 | S107: 2020-12-11 | T107: 0
A108: 51 | B108: 0 | C108: 2020-12-14 | D108: 0 | G108: 2020-12-15 | H108: 0 | K108: 2020-12-16 | L108: 0 | O108: 2020-12-17 | P108: 0 | S108: 2020-12-18 | T108: 0
A109: 52 | B109: 0 | C109: 2020-12-21 | D109: 0 | G109: 2020-12-22 | H109: 0 | K109: 2020-12-23 | L109: 0 | O109: 2020-12-24 | P109: 0 | S109: 2020-12-25 | T109: 0
A110: 53 | B110: =VLOOKUP(A110,$A$3:$B$55,2,FALSE) -> 0 | C110: 2020-12-28 | D110: 0 | G110: 2020-12-29 | H110: 0 | K110: 2020-12-30 | L110: 0 | O110: 2020-12-31 | P110: 0 | S110: 2021-01-01 | T110: 0
